Cogmind - Beta 16 @@@ ROGUE MODE // 2025.11.10 @ 10:38:08 Player: ivnj Result: Destroyed by B-36 Bruiser with Hammer Performance ------------- Evolutions (1) 500 Regions Visited (6) 1200 Robots Destroyed (23) 115 Value Destroyed (452) 452 Prototype IDs (0) 0 Alien Tech Used (0) 0 Bonus (0) 0 TOTAL SCORE: 2267 Bonus ------- None Cogmind --------- Core Integrity 0/400 Matter 36/300 Energy 124/125 System Corruption 0% Temperature Cool (9) Movement Core (300) Ox5 Location -8/Mines Parts ------- > --- POWER (1) -------- Light Ion Engine > --- PROPULSION (3) --- (None) > --- UTILITY (3) ------ Heat Sink Small Storage Unit > --- WEAPON (2) ------- Particle Gun Rocket Launcher > --- INVENTORY (8) ---- Medium Storage Unit Mining Claw Peak State ------------ > --- POWER ------------ Light Ion Engine > --- PROPULSION ------- Flight Unit Flight Unit Flight Unit > --- UTILITY ---------- Heat Sink Heat Sink Medium Storage Unit > --- WEAPON ----------- Particle Gun Light Assault Rifle > --- INVENTORY -------- Light Ion Engine Light Ion Engine Light Ion Engine Aluminum Leg Beam Rifle Bore Cannon Rocket Launcher Mining Claw [Rating: 11] Favorites ----------- Power Light Ion Engine Engine Light Ion Engine Propulsion Light Treads Treads Light Treads Leg Aluminum Leg Flight Unit Flight Unit Utility Heat Sink Device Heat Sink Storage Medium Storage Unit Protection Light Armor Plating Weapon Assault Rifle Energy Gun Particle Gun Ballistic Gun Assault Rifle Ballistic Cannon Bore Cannon Launcher Rocket Launcher Slashing Weapon Mining Claw Build | -11 -10 -10 -9 -9 -9 -8 ------- Run | Yrd Mat Min Mat Min Exi Min Slots Evolved 2 | . . . 2 . . . Power . | . . . . . . . Propulsion 1 | . . . 1 . . . Utility 1 | . . . 1 . . . Weapon . | . . . . . . . Parts Attached 30 | 7 4 2 16 . 1 . Power 5 | 1 . 1 3 . . . Engine 5 | 1 . 1 3 . . . Core . | . . . . . . . Reactor . | . . . . . . . Propulsion 8 | 2 . . 6 . . . Treads 2 | 2 . . . . . . Leg 1 | . . . 1 . . . Wheel . | . . . . . . . Hover . | . . . . . . . Flight 5 | . . . 5 . . . Utility 8 | 1 4 . 2 . 1 . Device 3 | . 2 . 1 . . . Storage 4 | 1 2 . . . 1 . Processor . | . . . . . . . Hackware . | . . . . . . . Protection 1 | . . . 1 . . . Artifact . | . . . . . . . Weapon 9 | 3 . 1 5 . . . Energy Gun 2 | . . . 2 . . . Energy Cannon . | . . . . . . . Ballistic Gun 4 | 3 . 1 . . . . Ballistic Cannon 1 | . . . 1 . . . Launcher 1 | . . . 1 . . . Special Weapon . | . . . . . . . Impact Weapon . | . . . . . . . Slashing Weapon 1 | . . . 1 . . . Piercing Weapon . | . . . . . . . Special Melee Weapon . | . . . . . . . Unidentified Prototypes . | . . . . . . . Parts Lost 15 | . 1 . 13 . . 1 Power 3 | . . . 3 . . . Propulsion 6 | . . . 5 . . 1 Utility 3 | . 1 . 2 . . . Weapon 3 | . . . 3 . . . Highest Loss Streak 7 | . 1 . 7 . . 1 To Critical Strikes . | . . . . . . . Average Backups 6 | 2 5 8 7 3 3 2 Power 2 | . 1 2 2 . . . Propulsion 1 | . 2 2 . . . . Utility . | . 1 1 . 1 1 1 Weapon 2 | . 1 2 3 2 2 1 Tool/Special . | . . . . . . . Unused Backups 5 | . . 4 . . 1 . Power 1 | . . . . . 1 . Propulsion 3 | . . 3 . . . . Utility . | . . . . . . . Weapon 1 | . . 1 . . . . Tool/Special . | . . . . . . . Average Slot Usage (%) 82 | . 93 100 63 44 45 60 Engine 12 | . 14 14 8 11 11 11 Treads 18 | . 28 28 5 . . . Leg 2 | . . . 1 11 11 5 Flight 2 | . . . 12 . . . Device 11 | . 7 14 9 11 11 11 Storage 11 | . 14 14 9 . 1 11 Energy Gun 2 | . . . 4 11 11 11 Ballistic Gun 18 | . 28 28 7 . . . Peak Build Rating 11 | 6 7 8 11 5 6 8 Average Rating 7 | 5 6 7 8 5 5 7 On Entrance 5 | . 6 7 8 5 5 6 Avg Prop Armor Cover (%) . | . . . . . . . Naked Turns . | . . . . . . . Heaviest Build 37 | 12 37 18 24 7 12 . Greatest Support 40 | 40 40 40 40 10 10 . Greatest Overweight (x) 5 | 3 . . 5 . 1 . Average Overweight (x) . | . . . 1 . . . Largest Inventory Capacity 15 | 8 15 10 10 5 8 8 Average Capacity 9 | 7 9 10 9 5 5 8 Most Carried 10 | 4 6 10 10 3 4 2 Average Carried 6 | 2 5 9 7 3 3 2 Final Capacity 10 | 8 10 10 5 5 8 8 Final Carried 10 | 4 5 10 3 3 3 2 Class Distribution -------------------- 82% | Mutant 17% | Scavenger-Mutant Dominant Class ---------------- Mutant | -10/Materials Mutant | -10/Mines Mutant | -9/Materials Scavenger-Mutant | -9/Mines Scavenger-Mutant | -9/Exiles Scavenger-Mutant | -8/Mines Resources | -11 -10 -10 -9 -9 -9 -8 ----------- Run | Yrd Mat Min Mat Min Exi Min Matter Collected 780 | 235 55 192 298 . . . Remotely . | . . . . . . . Salvage Created 407 | . 32 117 241 . . 17 Parts 45 | . 2 16 25 . . 2 Haulers Intercepted . | . . . . . . . Recyclers Shooed . | . . . . . . . Parts Field Recycled . | . . . . . . . Retrieved Matter . | . . . . . . . Parts Self-Destructed . | . . . . . . . Prevented . | . . . . . . . Parts Restored . | . . . . . . . Kills | -11 -10 -10 -9 -9 -9 -8 ------- Run | Yrd Mat Min Mat Min Exi Min Combat Hostiles Destroyed 21 | . 1 8 11 . . 1 Melee 2 | . . . 2 . . . Guns 14 | . 1 8 5 . . . Cannons 3 | . . . 3 . . . AOE 2 | . . . 1 . . 1 Classes Destroyed 5 | . 1 1 3 . . . Tunneler 1 | . . . 1 . . . Mechanic 1 | . . . 1 . . . Swarmer 15 | . . 8 7 . . . Grunt 4 | . 1 . 2 . . 1 Sentry 2 | . . . 2 . . . Best Kill Streak 3 | . 1 3 3 . . 1 Combat Bots Only 3 | . 1 3 3 . . 1 Max Kills in Single Turn 3 | . 1 1 3 . . 1 Gunslinging . | . . . . . . . Exploded 1 | . . . 1 . . 1 Melee 1 | . . . 1 . . . Uniques/NPCs Destroyed . | . . . . . . . Combat | -11 -10 -10 -9 -9 -9 -8 -------- Run | Yrd Mat Min Mat Min Exi Min Hostile Shots Fired 254 | . 36 40 171 . . 7 Missed 71 | . 9 5 57 . . . Hits 183 | . 27 35 114 . . 7 Melee 1 | . . . . . . 1 Projectile 182 | . 27 35 114 . . 6 Critical Strikes 1 | . . . 1 . . . Damage Taken 1953 | . 352 282 1199 . . 120 Core 491 | . 32 44 356 . . 59 Absorbed by Shields . | . . . . . . . Core Remaining (%) 84 | 100 . 69 . . . . Volleys Fired 86 | . 12 23 47 . . 4 Largest 2 | . 2 2 2 . . 1 Hottest 113 | . 40 40 113 . . 65 Shots Fired 144 | . 24 46 70 . . 4 Gun 115 | . 24 46 44 . . 1 Cannon 20 | . . . 20 . . . Launcher 9 | . . . 6 . . 3 Special . | . . . . . . . Kinetic 114 | . 24 46 44 . . . Thermal 21 | . . . 20 . . 1 Explosive 9 | . . . 6 . . 3 Electromagnetic . | . . . . . . . Robot Hit Streak 22 | . 3 8 22 . . 3 Robot Miss Streak 9 | . 9 3 4 . . 1 Penetration Max . | . . . . . . . Secondary Targets 1 | . . 1 . . . . Max Gunslinging Chain 1 | . . 1 . . . . Shots Hit Robots 88 | . 10 27 48 . . 3 Core Hits 44 | . 4 10 24 . . 6 Critical Kills 3 | . . . 3 . . . Critical Parts Destroyed 5 | . 1 1 3 . . . Critical Strikes 9 | . 1 1 7 . . . Burn 1 | . . . 1 . . . Destroy 8 | . 1 1 6 . . . Melee Attacks 11 | . . . 11 . . . Impact . | . . . . . . . Slashing 11 | . . . 11 . . . Piercing . | . . . . . . . Sneak Attacks . | . . . . . . . Combat Hostiles . | . . . . . . . Follow-up Attacks . | . . . . . . . Damage Inflicted 1549 | . 121 272 876 . . 280 Guns 758 | . 121 272 352 . . 13 Cannons 236 | . . . 236 . . . Explosions 462 | . . . 195 . . 267 Melee 92 | . . . 92 . . . Ramming 1 | . . . 1 . . . Kinetic 763 | . 121 272 370 . . . Thermal 231 | . . . 218 . . 13 Explosive 462 | . . . 195 . . 267 Electromagnetic . | . . . . . . . Impact . | . . . . . . . Slashing 92 | . . . 92 . . . Piercing . | . . . . . . . Highest Corruption . | . . . . . . . Average Corruption . | . . . . . . . Corruption Purged . | . . . . . . . Corruption Blocked . | . . . . . . . Overload Shots . | . . . . . . . Overflow Damage 14 | . . . 1 . . 13 Projectiles . | . . . . . . . Explosions 14 | . . . 1 . . 13 Melee . | . . . . . . . Knockbacks 1 | . . . 1 . . . Impact . | . . . . . . . Kinetic 1 | . . . 1 . . . Secondary . | . . . . . . . Self-Inflicted Damage 14 | . . . 14 . . . Shots 1 | . . . 1 . . . Rammed 1 | . . . 1 . . . Targets Rammed 1 | . . . 1 . . . Kicked . | . . . . . . . Crushed . | . . . . . . . Highest Temperature 48 | . 3 . 48 . . 1 Average Temperature 11 | . 2 . 12 . . 1 Received Heat Transfer 468 | . 195 . 219 . . 54 Siege Activations . | . . . . . . . Martial Activations . | . . . . . . . Shielding Activations . | . . . . . . . Robots Disrupted . | . . . . . . . Combat Hostiles . | . . . . . . . Robots Corrupted . | . . . . . . . Combat Hostiles . | . . . . . . . Parts Fried . | . . . . . . . Impact Corruptions . | . . . . . . . Robots Melted . | . . . . . . . Combat Hostiles . | . . . . . . . Parts Melted 1 | . . . 1 . . . Heat Transferred 666 | . . . 629 . . 37 Parts Sabotaged . | . . . . . . . Parts Stolen . | . . . . . . . Parts Stripped . | . . . . . . . Power Chain Reactions . | . . . . . . . Alert | -11 -10 -10 -9 -9 -9 -8 ------- Run | Yrd Mat Min Mat Min Exi Min Maximum Alert Level . | . . . . . . . Low Security (%) 100 | 100 100 100 100 100 . 100 Level 1 . | . . . . . . . Level 2 . | . . . . . . . Level 3 . | . . . . . . . Level 4 . | . . . . . . . Level 5 . | . . . . . . . High Security . | . . . . . . . Max Security . | . . . . . . . Peak Influence 178 | . 20 70 178 49 . 33 Initial 49 | . . . . 49 . . Average 30 | . . 13 85 48 . 17 Influence Increases 681 | . 21 210 417 . . 33 Destroy 0b10 Robot/C 420 | . 20 160 220 . . 20 Destroy 0b10 Robot/NC 10 | . . . 10 . . . Destroy Leader 90 | . . 30 60 . . . Trap Triggered on 0b10 20 | . . 20 . . . . Successful Hack 5 | . . . 5 . . . Disable Machine 45 | . . . 45 . . . Destroy Structure 46 | . 1 . 32 . . 13 Lose Combat Pursuer 45 | . . . 45 . . . Influence Decreases 648 | . 21 210 289 89 39 . Entered New Map 118 | . . . . 79 39 . Time Decay 410 | . 11 210 179 10 . . Lost Part 120 | . 10 . 110 . . . Squads Dispatched 1 | . . . 1 . . . Investigation . | . . . . . . . Extermination . | . . . . . . . Reinforcement 1 | . . . 1 . . . Assault . | . . . . . . . Garrison . | . . . . . . . Intercept . | . . . . . . . Searches Triggered . | . . . . . . . Construction Impeded . | . . . . . . . Haulers Reinforced . | . . . . . . . Active Scanning Responses . | . . . . . . . Cargo Convoy Interrupts . | . . . . . . . Stealth | -11 -10 -10 -9 -9 -9 -8 --------- Run | Yrd Mat Min Mat Min Exi Min Distress Signals 3 | . 2 . 1 . . . Communications Jammed . | . . . . . . . Distress Signals . | . . . . . . . Times Spotted 60 | . 10 9 29 9 . 3 Peak Tracking Total 18 | . 7 3 9 18 . 3 Tactical Retreats 5 | . 2 . 3 . . . ECM-based Alert Blocks 3 | . 3 . . . . . Traps | -11 -10 -10 -9 -9 -9 -8 ------- Run | Yrd Mat Min Mat Min Exi Min Traps Triggered . | . . . . . . . Indirectly . | . . . . . . . Trap Hack Attempts . | . . . . . . . Triggered . | . . . . . . . Disarmed . | . . . . . . . Reprogrammed . | . . . . . . . Reused 2 | . . 2 . . . . Traps Extracted . | . . . . . . . Installed 3 | . . 3 . . . . Triggered 2 | . . 2 . . . . Machines | -11 -10 -10 -9 -9 -9 -8 ---------- Run | Yrd Mat Min Mat Min Exi Min Machines Disabled 3 | . . . 3 . . . Max in Single Turn 1 | . . . 1 . . . Machines Repaired . | . . . . . . . Machines Dismantled . | . . . . . . . Machines Sabotaged . | . . . . . . . Overloaded Fab Kills . | . . . . . . . Hacking | -11 -10 -10 -9 -9 -9 -8 --------- Run | Yrd Mat Min Mat Min Exi Min Machines Accessed 4 | . . . 4 . . . Terminals 3 | . . . 3 . . . Fabricators . | . . . . . . . Repair Stations . | . . . . . . . Recycling Units . | . . . . . . . Scanalyzers 1 | . . . 1 . . . Garrison Access . | . . . . . . . Total Hacks 6 | . . . 6 . . . Successful 4 | . . . 4 . . . Failed 1 | . . . 1 . . . Catastrophic 1 | . . . 1 . . . Database Lockouts 1 | . . . 1 . . . Manual . | . . . . . . . Terminals 4 | . . . 4 . . . Fabricators . | . . . . . . . Repair Stations . | . . . . . . . Recycling Units . | . . . . . . . Scanalyzers 2 | . . . 2 . . . Garrison Access . | . . . . . . . Terminal Hacks 3 | . . . 3 . . . Record 1 | . . . 1 . . . Terminal Index 1 | . . . 1 . . . Zone Layout 1 | . . . 1 . . . Fabricator Hacks . | . . . . . . . Repair Station Hacks . | . . . . . . . Recycling Unit Hacks . | . . . . . . . Scanalyzer 1 | . . . 1 . . . Retrieve Study 1 | . . . 1 . . . Garrison Access Hacks . | . . . . . . . Unauthorized Hacks . | . . . . . . . Terminals . | . . . . . . . Fabricators . | . . . . . . . Repair Stations . | . . . . . . . Recycling Units . | . . . . . . . Scanalyzers . | . . . . . . . Garrison Access . | . . . . . . . Data Cores Recovered . | . . . . . . . Used . | . . . . . . . Hacking Detections 1 | . . . 1 . . . Full Trace Events . | . . . . . . . Feedback Events . | . . . . . . . Feedback Blocked . | . . . . . . . Robot Schematics Acquired . | . . . . . . . Robots Built . | . . . . . . . Authchips . | . . . . . . . Time . | . . . . . . . Total Robot Build Rating . | . . . . . . . Part Schematics Acquired . | . . . . . . . Parts Built . | . . . . . . . Authchips . | . . . . . . . Time . | . . . . . . . Total Part Build Rating . | . . . . . . . Part Studies Acquired 1 | . . . 1 . . . Parts Repaired . | . . . . . . . Time . | . . . . . . . Parts Recycled . | . . . . . . . Recycled Matter . | . . . . . . . Retrieved Matter . | . . . . . . . Retrieved Components . | . . . . . . . Parts Scanalyzed . | . . . . . . . Part Schematics Acquired . | . . . . . . . Parts Damaged . | . . . . . . . Bothacking | -11 -10 -10 -9 -9 -9 -8 ------------ Run | Yrd Mat Min Mat Min Exi Min Used RIF Installer . | . . . . . . . Robots Hacked . | . . . . . . . Non-combat . | . . . . . . . Combat . | . . . . . . . Robot Hacks Applied . | . . . . . . . Relay Couplers Released . | . . . . . . . Fabnet Peak Effective % . | . . . . . . . Robots Rewired . | . . . . . . . Allies Hacked . | . . . . . . . Hacks Repelled . | . . . . . . . Allies | -11 -10 -10 -9 -9 -9 -8 -------- Run | Yrd Mat Min Mat Min Exi Min Total Allies . | . . . . . . . Largest Group . | . . . . . . . Highest-Rated Group . | . . . . . . . Highest-Rated Ally . | . . . . . . . Total Orders . | . . . . . . . Ally Attacks . | . . . . . . . Total Damage . | . . . . . . . Kills . | . . . . . . . Allies Corrupted . | . . . . . . . Allies Melted . | . . . . . . . Intel | -11 -10 -10 -9 -9 -9 -8 ------- Run | Yrd Mat Min Mat Min Exi Min Active Infowar (turns) 171 | . 171 . . . . . ECM 171 | . 171 . . . . . Robot Analysis Total . | . . . . . . . Derelict Logs Recovered 2 | . . 2 . . . . Drone Launches . | . . . . . . . Drone Recoveries . | . . . . . . . Exploration | -11 -10 -10 -9 -9 -9 -8 ------------- Run | Yrd Mat Min Mat Min Exi Min Turns Passed 2293 | 84 320 1039 542 20 280 8 Spaces Moved 1196 | 46 171 572 175 17 215 . Core 10 | 10 . . . . . . Treads 844 | 36 171 572 65 . . . Legs 269 | . . . 37 17 215 . Wheels . | . . . . . . . Hover . | . . . . . . . Flight 73 | . . . 73 . . . Fastest Speed 50 | 50 160 160 114 120 120 . Average Speed 156 | 155 160 160 177 120 129 . Slowest Speed 440 | 200 160 160 440 120 190 . Overloaded Moves . | . . . . . . . Propulsion Burnouts . | . . . . . . . Robots Hopped . | . . . . . . . Potential Cave-ins . | . . . . . . . Cave-ins Triggered . | . . . . . . . Exploration Rate (%) 32 | 3 30 97 23 9 59 8 Regions Visited 6 Branch Regions 4 Pre-discovered Areas 1 | . . 1 . . . . Known Exits Taken . | . . . . . . . Unknown Exits Taken 6 | 1 1 1 1 1 1 . Scrap Searched 1 | . . 1 . . . . Spaces Dug . | . . . . . . . Terrain Destroyed 53 | . . . 38 . . 15 Melee . | . . . . . . . Projectile 8 | . . . 8 . . . AOE 45 | . . . 30 . . 15 Terrain Rammed . | . . . . . . . Walls Destroyed . | . . . . . . . Machines Disabled . | . . . . . . . Actions | -11 -10 -10 -9 -9 -9 -8 --------- Run | Yrd Mat Min Mat Min Exi Min Total 1455 | 55 194 654 314 16 217 5 Wait 71 | . 4 41 26 . . . Move 1190 | 45 170 571 174 16 214 . Hop . | . . . . . . . Pick Up 22 | 3 1 9 8 . 1 . Fast Attach 16 | 6 3 . 6 . 1 . Attach 16 | . 1 1 13 . . 1 Detach 6 | . 2 . 4 . . . Swap 14 | 1 . 1 12 . . . Drop 19 | . 1 5 12 . 1 . Fire 86 | . 12 23 47 . . 4 Melee 11 | . . . 11 . . . Ram 1 | . . . 1 . . . Kick . | . . . . . . . Crush . | . . . . . . . Escape Stasis . | . . . . . . . Rewire . | . . . . . . . Trap 3 | . . 3 . . . . Miscellaneous . | . . . . . . . Route ------- -11/Scrapyard -10/Materials (discovered 2 exits: [*Min x2]) -10/Mines -9/Materials -9/Mines -9/Exiles -8/Mines History --------- Turn | Location | Event 20 | -11/Scrapyard | Discovered new exit (range 15) 85 | -11/Scrapyard | Entered Materials 318 | -10/Materials | Build established: Mutant 356 | -10/Materials | Discovered new exit (range 5) 359 | -10/Materials | Discovered new exit (range 14) 405 | -10/Materials | Entered Mines 880 | -10/Mines | Learned Materials interactive machine intel 995 | -10/Mines | A weapon hastily lodged in a ceiling crevice suddenly fell to the ground 1028 | -10/Mines | Learned location of Zion (-7) 1082 | -10/Mines | Found a hidden stash of uninstalled traps 1146 | -10/Mines | Discovered new exit (range 9) 1444 | -10/Mines | Entered Materials 1444 | -9/Materials | Evolved 2 slots: Propulsion x1, Utility x1 1445 | -9/Materials | Loaded intel: 18 interactive machine locations 1534 | -9/Materials | Central database locked down 1658 | -9/Materials | Lost 4 parts (3n1w) 1744 | -9/Materials | Core integrity fell below 50% 1877 | -9/Materials | Lost 7 parts (2p2n2u1w) 1971 | -9/Materials | Discovered new exit (range 7) 1975 | -9/Materials | Core integrity fell below 20% 1986 | -9/Materials | Entered Mines 1987 | -9/Mines | Assembled infested the area 2000 | -9/Mines | Deemed a non-threat by the Exiles lab entrance 2001 | -9/Mines | Discovered new exit (range 5) 2006 | -9/Mines | Entered Exiles 2042 | -9/Exiles | Met 8R-AWN 2056 | -9/Exiles | Met EX-HEX 2091 | -9/Exiles | Met EX-BIN 2190 | -9/Exiles | Met EX-DEC 2223 | -9/Exiles | Build established: Scavenger-Mutant 2271 | -9/Exiles | Discovered new exit (range 10) 2286 | -9/Exiles | Entered Mines 2294 | -8/Mines | Destroyed by B-36 Bruiser with Hammer Last Messages --------------- be much safer for us to move around anywhere in the complex. Want in on the action? Just step right into the FarCom Aligner and I'll do the rest. Now, I'll admit there could be side effects, but if you're willing to participate in the trials you can have one of our prototypes. How's that for a sweet deal? 02093_ EX-BIN: "Please do it. The faster we get more data and tweak this thing to perfection, the faster I can get back to my spacelab designs." OG-UC6(z): Why did DEC have to put these flashy spikey things everywhere, they really get in the way, you know? EX-DEC: Ah I see we have a visitor. One wrong move in here and I'll invert your atomic chain! 02192_ EX-DEC: "Oops, I hope HEX didn't hear that..." 02231_ Acquired Sml. Storage Unit. 02271_ EXIT=FOUND LOCATION=UNKNOWN GOAL=ESCAPE 02287_ Aluminum Leg destroyed. 02290_ Destroyed Imp. Heat Sink. 02291_ G-47 Trooper destroyed. Map ----- +----------------------------------------------------+ | | | | | | | | | | | | | | | | | | | | | | | | | | | | | | | | | | | | | ?????????????????????????????????? | | ?????????????????????????????????? | | ????????????????????####?????????? | | ???????????????????## #????????? | | ????????????????#### ##??????? | | ???????????????## ##?????? | | ???????????????# ###???? | | ????????????# b@ #???? | | ???????????# [ #??? | | ???????????# g % #??? | | ???????????# = ##??? | | ???????????# ## ##???? | | ?????????????# #????? | | ?????????????#### #????? | | ????????????????### #????? | | ??????????????????### ????? | | ????????????????????## # ????? | | ?????????????????????# ?# ????? | | ?????????????????????# ?? ???? | | ?????????????????????# ?? ???? | | ?????????????????????# ??# #???? | | ?????????????????????# ????###???? | | ?????????????????????????????????? | | ?????????????????????????????????? | | ?????????????????????????????????? | | ?????????????????????????????????? | | ?????????????????????????????????? | | ?????????????????????????????????? | | ?????????????????????????????????? | | ?????????????????????????????????? | | ?????????????????????????????????? | | ?????????????????????????????????? | +----------------------------------------------------+ Best States ------------- Heat Dissipation 48 Energy Generation 10 Energy Capacity 125 Matter Stores 300 Matter Capacity 300 Sight Range 16 Terrain Scan Density 10 ECM Strength 1 Armor Coverage 150 Evasion (%) 55 Recoil Reduction 2 Item Schematics ----------------- None Robot Schematics ------------------ None Fabricated ------------ Nothing Repaired ---------- Nothing Studied --------- Rocket Launcher | -9/Materials | Hacked Alien Tech Used ----------------- None Achievements -------------- Resistances Are Futile Challenges ------------ None Game ------ Seed PortableGatlingDrivehammer Manual? 0 Play Time 00:37:07 Cumulative 6.7 hours Start 2025.11.10 @ 09:58:15 End 2025.11.10 @ 10:38:08 Sessions 1 Manual Loads 0 Difficulty Rogue Special Mode None Game No. 6 Rogue 6 Adventurer 0 Explorer 0 Win Type - Total 0 Types 0/0/0/0/0/0/0/0/0/0 Lore% 5 Gallery% 7 Achievement% 8 Wizard Run 0 Options --------- Layout 0 ASCII 0 Keyboard 1 Movement Numpad Keybinds 1 Fullscreen 2 Font 24/Proggy Map View 76x50 Zoom Use 0% Tactical HUD 1 Map Filters NONE Filters NONE Steam 0 RUN: 3bbb4488-5bf0-4ac9-892e-179113f777f9